Cogmind - Beta 9.5 @@@ ROGUE MODE // 2020.04.02 @ 16:59:46 // AFD2020/Player2 Player: Omewes Result: Destroyed by P-60 Hacker with Shock Rifle Performance ------------- Evolutions (4) 2000 Regions Visited (14) 2800 Robots Destroyed (103) 515 Value Destroyed (4208) 4208 Prototype IDs (38) 760 Alien Tech Used (0) 0 Bonus (5308) 5308 TOTAL SCORE: 15591 Bonus ------- Triggered High Security 500 High Alert Combat Kills 1248 Follower Combat Kills 3807 Entered Garrisons 200 Used RIF Installer 500 Aligned with FarCom 300 Met Data Miner 300 Friendly Fire -1547 Cogmind --------- Core Integrity 0/850 Matter 12/300 Energy 80/100 System Corruption 4% Temperature Cool (0) Movement Core (50) Location -6/Factory Parts ------- > --- POWER (1) -------- (None) > --- PROPULSION (3) --- (None) > --- UTILITY (8) ------ (None) > --- WEAPON (3) ------- (None) > --- INVENTORY (4) ---- Light Angular Momentum Engine Peak State ------------ > --- POWER ------------ Light Nuclear Core > --- PROPULSION ------- Advanced Treads Medium Treads Carbon-fiber Leg > --- UTILITY ---------- Large Storage Unit Large Storage Unit Large Storage Unit Advanced Signal Interpreter Medium Reactive Plating Relay Coupler [NC] > --- WEAPON ----------- AWS/Autocannon > --- INVENTORY -------- Improved Heat Sink Improved Heat Sink Advanced Heat Sink Large Matter Pod Structural Scanner Kinecellerator Weapon Cycler Medium Reactive Plating Hacking Suite Relay Coupler [Brawler] Relay Coupler [Hunter] Component Analysis Suite Gauss Rifle Flak Gun Advanced Assault Cannon Heavy Rocket Launcher Remote Datajack Axe [Rating: 60] Favorites ----------- Power Light Nuclear Core Engine Angular Momentum Engine Power Core Light Nuclear Core Propulsion Light Treads Treads Light Treads Leg Carbon-fiber Leg Utility Large Storage Unit Device Structural Scanner Storage Large Storage Unit Processor Advanced Signal Interpreter Hackware Relay Coupler [NC] Protection Medium Reactive Plating Weapon Advanced Assault Cannon Energy Gun Heavy Laser Ballistic Gun Light Assault Rifle Ballistic Cannon Advanced Assault Cannon Launcher Heavy Rocket Launcher Special Weapon Remote Datajack Slashing Weapon Axe Build | -11 -10 -10 -9 -9 -9 -8 -8 -8 -7 -7 -7 -7 -6 -6 ------- Run | Scr Mat Min Mat Min Exi Min Mat Gar Fac Low Low Dat Pro Fac Slots Evolved 8 | . . . 2 . . . 2 . 2 . . . . 2 Power . | . . . . . . . . . . . . . . . Propulsion 1 | . . . 1 . . . . . . . . . . . Utility 6 | . . . 1 . . . 1 . 2 . . . . 2 Weapon 1 | . . . . . . . 1 . . . . . . . Parts Attached 168 | 7 2 . 18 7 . 3 20 9 20 3 28 . 2 49 Power 14 | 1 . . 1 2 . 1 2 . 2 1 2 . . 2 Engine 9 | 1 . . 1 1 . 1 1 . 1 1 . . . 2 Core 5 | . . . . 1 . . 1 . 1 . 2 . . . Reactor . | . . . . . . . . . . . . . . . Propulsion 38 | 3 . . 7 1 . . 9 . 3 1 3 . 2 9 Treads 29 | 2 . . 7 1 . . 9 . 3 1 1 . . 5 Leg 9 | 1 . . . . . . . . . . 2 . 2 4 Wheel . | . . . . . . . . . . . . . . . Hover . | . . . . . . . . . . . . . . . Flight . | . . . . . . . . . . . . . . . Utility 60 | 1 2 . 6 1 . . 5 5 10 . 10 . . 20 Device 16 | . . . . 1 . . 2 3 2 . 3 . . 5 Storage 13 | 1 1 . 2 . . . . 2 1 . 2 . . 4 Processor 6 | . 1 . . . . . 3 . 1 . 1 . . . Hackware 10 | . . . . . . . . . 4 . 2 . . 4 Protection 15 | . . . 4 . . . . . 2 . 2 . . 7 Artifact . | . . . . . . . . . . . . . . . Weapon 56 | 2 . . 4 3 . 2 4 4 5 1 13 . . 18 Energy Gun 5 | . . . . . . . . . . . . . . 5 Energy Cannon . | . . . . . . . . . . . . . . . Ballistic Gun 22 | 2 . . 4 3 . 2 . . . . 4 . . 7 Ballistic Cannon 18 | . . . . . . . 4 4 2 1 3 . . 4 Launcher 4 | . . . . . . . . . 1 . 2 . . 1 Special Weapon 6 | . . . . . . . . . 2 . 3 . . 1 Impact Weapon . | . . . . . . . . . . . . . . . Slashing Weapon 1 | . . . . . . . . . . . 1 . . . Piercing Weapon . | . . . . . . . . . . . . . . . Special Melee Weapon . | . . . . . . . . . . . . . . . Unidentified Prototypes 2 | . . . . . . . . . . . . . . 2 Parts Lost 25 | . . . 5 2 . 1 1 . . . 7 . 2 7 Power 5 | . . . . . . 1 . . . . 2 . 1 1 Propulsion 8 | . . . 1 . . . 1 . . . 2 . 1 3 Utility 3 | . . . 2 . . . . . . . . . . 1 Weapon 9 | . . . 2 2 . . . . . . 3 . . 2 Highest Loss Streak 4 | . . . 3 1 . 1 1 . . . 4 . 2 3 Average Slot Usage (%) 93 | . 92 100 91 88 100 100 97 99 99 96 92 84 75 90 Engine 4 | . 14 14 11 2 . 10 6 . 2 7 3 . . 5 Core 3 | . . . . 8 11 . 2 9 4 . 3 7 1 . Treads 21 | . 28 28 32 33 33 33 26 27 23 19 16 15 5 11 Leg 2 | . . . . . . . . . . . 2 7 15 4 Device 5 | . . . . . 11 11 5 8 6 . 5 . . 7 Storage 21 | . 14 14 15 22 22 22 18 25 23 23 23 23 23 20 Processor 3 | . 6 14 6 . . . 11 2 . . 1 7 7 1 Hackware 7 | . . . . . . . . . 9 23 10 7 7 14 Protection 3 | . . . 7 . . . . . 5 . 3 7 7 6 Energy Gun 1 | . . . . . . . . . . . . . . 6 Ballistic Gun 7 | . 28 28 17 22 22 22 . . . . 3 . . 3 Ballistic Cannon 9 | . . . . . . . 25 26 16 20 11 7 7 4 Naked Turns 2 | . . . . . . . . . . . . . . 2 Heaviest Build 133 | 12 16 16 43 43 40 40 98 100 117 84 133 133 133 133 Greatest Support 70 | 40 40 40 60 60 60 60 62 62 65 65 62 50 50 70 Greatest Overweight (x) 5 | 1 . . 1 . . . 1 1 1 1 5 2 5 4 Average Overweight (x) . | . . . . . . . . . 1 1 1 2 2 1 Largest Inventory Capacity 22 | 6 8 8 16 16 16 16 16 22 22 22 22 22 22 22 Average Capacity 18 | 5 6 8 12 16 16 16 16 20 22 22 22 22 22 21 Most Carried 22 | 4 6 6 8 8 9 9 16 20 22 21 21 18 20 22 Average Carried 14 | 1 1 6 5 5 6 8 11 16 20 20 17 17 18 19 Final Capacity 22 | 6 8 8 16 16 16 16 16 22 22 22 22 22 22 4 Final Carried 21 | 4 6 6 7 5 9 9 14 20 21 20 18 17 20 1 Class Distribution -------------------- 20% | Scavenger-Mutant 17% | Bothacker-Mutant 12% | Scavenger-Skirmisher 11% | Hauler-Skirmisher 11% | Hauler-Mutant 10% | Hauler-Tank 9% | Mutant 4% | Skirmisher Dominant Class ---------------- Mutant | -10/Materials Mutant | -10/Mines Scavenger-Mutant | -9/Materials Scavenger-Mutant | -9/Mines Scavenger-Mutant | -9/Exiles Scavenger-Mutant | -8/Mines Scavenger-Skirmisher | -8/Materials Hauler-Skirmisher | -8/Garrison Bothacker-Mutant | -7/Factory Bothacker-Gunner | -7/Lower Caves Bothacker-Mutant | -7/Lower Caves Hauler-Mutant | -7/Data Miner Hauler-Tank | -6/Proximity Caves Hauler-Skirmisher | -6/Factory Resources | -11 -10 -10 -9 -9 -9 -8 -8 -8 -7 -7 -7 -7 -6 -6 ----------- Run | Scr Mat Min Mat Min Exi Min Mat Gar Fac Low Low Dat Pro Fac Matter Collected 5032 | 212 178 32 120 469 . 23 953 395 809 75 540 . 347 879 Remotely . | . . . . . . . . . . . . . . . Salvage Created 3062 | . 238 34 171 104 . . 675 134 288 1 187 . 129 1101 Parts 171 | . 17 . 8 16 . . 41 13 23 . 9 . 7 37 Haulers Intercepted 6 | . . . 2 . . . 2 . 1 . . . . 1 Recyclers Shooed 6 | . 1 . . . . . 1 . . . . . . 4 Parts Field Recycled . | . . . . . . . . . . . . . . . Retrieved Matter . | . . . . . . . . . . . . . . . Parts Self-Destructed 39 | . . . . . . . . . . 3 28 . 8 . Prevented . | . . . . . . . . . . . . . . . Kills | -11 -10 -10 -9 -9 -9 -8 -8 -8 -7 -7 -7 -7 -6 -6 ------- Run | Scr Mat Min Mat Min Exi Min Mat Gar Fac Low Low Dat Pro Fac Combat Hostiles Destroyed 82 | . 7 1 2 8 . . 18 5 8 2 7 . 5 19 Melee 1 | . . . . . . . . . . . . . . 1 Guns 31 | . 7 1 2 8 . . . . . . 1 . . 12 Cannons 44 | . . . . . . . 18 5 5 2 5 . 5 4 AOE 6 | . . . . . . . . . 3 . 1 . . 2 Classes Destroyed 15 | . 2 . 1 . . . 5 . 2 1 1 . 1 2 Worker 3 | . . . . . . . 2 . 1 . . . . . Builder 3 | . . . . . . . 2 . . . . . . 1 Hauler 6 | . . . 2 . . . 2 . 1 . . . . 1 Recycler 5 | . . . . . . . 1 . 1 . . . . 3 Operator 1 | . . . . . . . . . 1 . . . . . Watcher 3 | . . . . . . . 1 . . . . . . 2 Swarmer 33 | . 2 . . 8 . . 4 2 5 . 1 . 3 8 Saboteur 1 | . . . . . . . . . . . . . . 1 Grunt 34 | . 5 1 2 . . . 9 2 1 1 5 . 1 7 Brawler 1 | . . . . . . . . . . . . . 1 . Duelist 2 | . . . . . . . . . . . 1 . . 1 Sentry 7 | . . . . . . . 5 1 1 . . . . . Hunter 1 | . . . . . . . . . . . . . . 1 Programmer 2 | . . . . . . . . . 1 . . . . 1 Behemoth 1 | . . . . . . . . . . 1 . . . . Best Kill Streak 5 | . 2 1 2 4 . . 5 2 3 1 2 . 3 5 Combat Bots Only 4 | . 2 1 1 4 . . 4 2 3 1 2 . 3 4 Max Kills in Single Turn 3 | . 2 1 1 2 . . 2 1 3 1 1 . 1 3 Gunslinging 1 | . 1 . . 1 . . . . . . . . . . Exploded 3 | . . . . . . . . . 3 . 1 . . 2 Melee 1 | . . . . . . . . . . . . . . 1 Uniques/NPCs Destroyed . | . . . . . . . . . . . . . . . Combat | -11 -10 -10 -9 -9 -9 -8 -8 -8 -7 -7 -7 -7 -6 -6 -------- Run | Scr Mat Min Mat Min Exi Min Mat Gar Fac Low Low Dat Pro Fac Damage Taken 6950 | . 196 92 801 345 . 81 679 278 678 315 1182 . 115 2188 Core 885 | . 45 . 134 28 . . 95 31 41 72 213 . . 226 Absorbed by Shields . | . . . . . . . . . . . . . . . Core Remaining (%) 48 | 100 . 46 . . . 32 . 52 . . . . 14 . Volleys Fired 341 | . 25 8 41 21 . 3 47 23 54 10 35 . . 74 Largest 3 | . 2 2 2 2 . 2 3 3 3 3 3 . . 3 Hottest 218 | . 40 40 46 46 . 40 144 144 144 144 144 . . 218 Shots Fired 754 | . 50 16 56 42 . 6 152 61 84 30 59 . 10 188 Gun 279 | . 50 16 56 42 . 6 . . . . 5 . . 104 Cannon 428 | . . . . . . . 152 61 54 30 42 . 10 79 Launcher 8 | . . . . . . . . . 1 . 3 . . 4 Special 39 | . . . . . . . . . 29 . 9 . . 1 Kinetic 674 | . 50 16 56 42 . 6 152 61 54 30 47 . 10 150 Thermal 30 | . . . . . . . . . . . . . . 30 Explosive 8 | . . . . . . . . . 1 . 3 . . 4 Electromagnetic 3 | . . . . . . . . . . . . . . 3 Robot Hit Streak 25 | . 5 10 24 7 . 4 25 7 8 8 7 . 10 14 Robot Miss Streak 5 | . 5 1 2 4 . 1 4 4 4 2 3 . 1 5 Penetration Max 1 | . . . . . . . . . . . . . . 1 Secondary Targets 4 | . 3 . . 1 . . . . . . . . . . Max Gunslinging Chain 1 | . 1 . . 1 . . . . . . . . . . Autonomous 31 | . . . . . . . 12 . . . . . 10 9 Shots Hit Robots 476 | . 30 13 48 27 . 4 104 21 46 20 42 . 8 113 Core Hits 196 | . 13 6 9 14 . 2 34 6 13 6 27 . 5 61 Critical Hits 14 | . . . . . . . 4 1 1 1 1 . 1 5 Critical Kills 7 | . . . . . . . 2 . 1 . . . 1 3 Critical Parts Destroyed 6 | . . . . . . . 2 1 . 1 . . . 2 Melee Attacks 1 | . . . . . . . . . . . 1 . . . Impact . | . . . . . . . . . . . . . . . Slashing 1 | . . . . . . . . . . . 1 . . . Piercing . | . . . . . . . . . . . . . . . Sneak Attacks . | . . . . . . . . . . . . . . . Combat Hostiles . | . . . . . . . . . . . . . . . Follow-up Attacks . | . . . . . . . . . . . . . . . Damage Inflicted 13076 | . 312 121 631 231 . 21 3376 482 1050 564 1427 . 726 4135 Guns 3207 | . 312 121 631 231 . 21 . . . . 93 . . 1798 Cannons 8325 | . . . . . . . 3356 482 838 564 747 . 726 1612 Explosions 1497 | . . . . . . . . . 212 . 560 . . 725 Melee 27 | . . . . . . . . . . . 27 . . . Ramming 20 | . . . . . . . 20 . . . . . . . Kinetic 10998 | . 312 121 631 231 . 21 3356 482 838 564 840 . 726 2876 Thermal 499 | . . . . . . . . . . . . . . 499 Explosive 1497 | . . . . . . . . . 212 . 560 . . 725 Electromagnetic 35 | . . . . . . . . . . . . . . 35 Impact . | . . . . . . . . . . . . . . . Slashing 27 | . . . . . . . . . . . 27 . . . Piercing . | . . . . . . . . . . . . . . . Highest Corruption 4 | . . . 2 2 2 2 1 1 4 4 4 4 4 4 Average Corruption 2 | . . . 2 2 2 2 1 1 2 4 4 4 4 3 Corruption Purged . | . . . . . . . . . . . . . . . Effects 139 | . . . 3 10 4 5 3 5 14 7 34 6 11 37 Message Errors 35 | . . . . 1 2 . 2 3 5 3 7 3 1 8 Matter Fused 25 | . . . . . . . . . 1 . 11 2 2 9 Heat Flow Errors 23 | . . . . 4 1 2 . . 3 . 6 . . 7 Energy Discharges 18 | . . . 1 2 1 1 . 2 3 . 2 1 3 2 Parts Rejected 2 | . . . . . . . . . . 1 . . 1 . Data Loss (minor) 20 | . . . . 2 . 2 . . 2 2 4 . 4 4 Targeting Errors 13 | . . . 1 1 . . . . . 1 4 . . 6 Weapon Failures 3 | . . . 1 . . . 1 . . . . . . 1 Overload Shots . | . . . . . . . . . . . . . . . Overflow Damage 705 | . . . . . . . 266 6 60 . 116 . 82 175 Projectiles 552 | . . . . . . . 266 6 60 . . . 82 138 Explosions 153 | . . . . . . . . . . . 116 . . 37 Melee . | . . . . . . . . . . . . . . . Knockbacks 62 | . . . . . . . 24 2 7 7 11 . 3 8 Impact . | . . . . . . . . . . . . . . . Kinetic 58 | . . . . . . . 23 2 7 6 10 . 2 8 Secondary 4 | . . . . . . . 1 . . 1 1 . 1 . Self-Inflicted Damage 68 | . . . . . . . . . . . 41 . . 27 Shots 2 | . . . . . . . . . . . 1 . . 1 Rammed 3 | . . . . . . . 3 . . . . . . . Targets Rammed 3 | . . . . . . . 3 . . . . . . . Kicked . | . . . . . . . . . . . . . . . Crushed . | . . . . . . . . . . . . . . . Highest Temperature 459 | . 24 9 9 243 125 166 342 112 210 459 232 . . 317 Average Temperature 95 | . 11 8 8 91 67 77 125 43 56 217 63 . . 61 Received Heat Transfer 1719 | . 96 51 195 9 . . 192 57 48 135 396 . 36 504 Effects 6 | . . . . . . . . . . 6 . . . . Energy Bleed 1 | . . . . . . . . . . 1 . . . . Matter Decay 1 | . . . . . . . . . . 1 . . . . Damage (minor) 1 | . . . . . . . . . . 1 . . . . Damage (major) 3 | . . . . . . . . . . 3 . . . . Siege Activations . | . . . . . . . . . . . . . . . Robots Corrupted . | . . . . . . . . . . . . . . . Combat Hostiles . | . . . . . . . . . . . . . . . Parts Fried . | . . . . . . . . . . . . . . . Impact Corruptions . | . . . . . . . . . . . . . . . Robots Melted . | . . . . . . . . . . . . . . . Combat Hostiles . | . . . . . . . . . . . . . . . Parts Melted 1 | . . . . . . . . . . . . . . 1 Heat Transferred 970 | . . . . . . . . . . . . . . 970 Parts Sabotaged 7 | . . . . . . . . . . . . . . 7 Parts Stolen . | . . . . . . . . . . . . . . . Parts Stripped . | . . . . . . . . . . . . . . . Power Chain Reactions . | . . . . . . . . . . . . . . . Missiles Intercepted . | . . . . . . . . . . . . . . . Alert | -11 -10 -10 -9 -9 -9 -8 -8 -8 -7 -7 -7 -7 -6 -6 ------- Run | Scr Mat Min Mat Min Exi Min Mat Gar Fac Low Low Dat Pro Fac Peak Influence 2335 | . 313 247 453 467 . 276 1117 1265 1078 . . . . 2335 Average Influence 631 | . 177 235 261 320 . 217 747 1030 626 . . . . 864 Maximum Alert Level 5 | . 1 1 2 2 . 1 4 4 3 . . . . 5 Low Security (%) 18 | 100 38 13 38 3 . 44 4 . . . . . . 31 Level 1 22 | . 61 86 43 68 . 55 8 . 13 . . . . 2 Level 2 24 | . . . 17 27 . . 17 . 55 . . . . 26 Level 3 19 | . . . . . . . 61 47 30 . . . . 6 Level 4 6 | . . . . . . . 8 52 . . . . . 4 Level 5 5 | . . . . . . . . . . . . . . 19 High Security 2 | . . . . . . . . . . . . . . 9 Max Security . | . . . . . . . . . . . . . . . Squads Dispatched 39 | . 4 . 2 . . . 7 . 4 . 1 . . 21 Investigation 2 | . . . . . . . 2 . . . . . . . Extermination 6 | . . . . . . . . . 3 . . . . 3 Reinforcement 16 | . 4 . 2 . . . 3 . . . . . . 7 Assault 13 | . . . . . . . 2 . 1 . 1 . . 9 Garrison 2 | . . . . . . . . . . . . . . 2 Intercept . | . . . . . . . . . . . . . . . Construction Impeded 4 | . . . . . . . . . . . . . . 4 Haulers Reinforced 2 | . . . . . . . . . . . . . . 2 Stealth | -11 -10 -10 -9 -9 -9 -8 -8 -8 -7 -7 -7 -7 -6 -6 --------- Run | Scr Mat Min Mat Min Exi Min Mat Gar Fac Low Low Dat Pro Fac Distress Signals 9 | . 2 . 1 . . . 3 . . . . . . 3 Communications Jammed . | . . . . . . . . . . . . . . . Distress Signals . | . . . . . . . . . . . . . . . Times Spotted 272 | . 21 4 15 23 . 8 41 17 36 5 28 . 5 69 Peak Tracking Total 14 | . 3 2 3 6 . 4 6 6 5 4 6 . 3 14 Tactical Retreats 8 | . . . . . . . . 3 . 1 2 . . 2 Traps | -11 -10 -10 -9 -9 -9 -8 -8 -8 -7 -7 -7 -7 -6 -6 ------- Run | Scr Mat Min Mat Min Exi Min Mat Gar Fac Low Low Dat Pro Fac Traps Triggered 10 | . . . 3 . . . 2 2 3 . . . . . Indirectly . | . . . . . . . . . . . . . . . Trap Hack Attempts . | . . . . . . . . . . . . . . . Triggered . | . . . . . . . . . . . . . . . Disarmed . | . . . . . . . . . . . . . . . Reprogrammed . | . . . . . . . . . . . . . . . Reused . | . . . . . . . . . . . . . . . Traps Extracted . | . . . . . . . . . . . . . . . Installed . | . . . . . . . . . . . . . . . Triggered . | . . . . . . . . . . . . . . . Machines | -11 -10 -10 -9 -9 -9 -8 -8 -8 -7 -7 -7 -7 -6 -6 ---------- Run | Scr Mat Min Mat Min Exi Min Mat Gar Fac Low Low Dat Pro Fac Machines Disabled 74 | . . . 4 . . 3 4 6 15 . 1 . . 41 Max in Single Turn 1 | . . . . . . . . 1 1 . 1 . . 1 Garrison Access 1 | . . . . . . . . . . . . . . 1 Garrison Relay 2 | . . . . . . . . 2 . . . . . . Machines Sabotaged . | . . . . . . . . . . . . . . . Garrisons Compromised . | . . . . . . . . . . . . . . . Overloaded Fab Kills . | . . . . . . . . . . . . . . . Fab Network Shutdowns . | . . . . . . . . . . . . . . . Hacking | -11 -10 -10 -9 -9 -9 -8 -8 -8 -7 -7 -7 -7 -6 -6 --------- Run | Scr Mat Min Mat Min Exi Min Mat Gar Fac Low Low Dat Pro Fac Machines Accessed 29 | . 2 1 . . 2 . 6 . 10 . . 4 1 3 Terminals 18 | . 2 1 . . . . 5 . 7 . . . 1 2 Fabricators 1 | . . . . . . . . . 1 . . . . . Repair Stations . | . . . . . . . . . . . . . . . Recycling Units . | . . . . . . . . . . . . . . . Scanalyzers 1 | . . . . . . . . . 1 . . . . . Garrison Access 3 | . . . . . . . 1 . 1 . . . . 1 Total Hacks 107 | . 3 1 . . 24 . 18 . 21 . . 27 6 7 Successful 71 | . 2 1 . . 24 . 5 . 7 . . 27 2 3 Failed 36 | . 1 . . . . . 13 . 14 . . . 4 4 Catastrophic 8 | . 1 . . . . . 2 . 2 . . . 2 1 Database Lockouts . | . . . . . . . . . . . . . . . Manual 38 | . 3 1 . . 1 . 11 . 12 . . . 5 5 Terminals 47 | . 3 1 . . . . 17 . 17 . . . 6 3 Fabricators 1 | . . . . . . . . . 1 . . . . . Repair Stations . | . . . . . . . . . . . . . . . Recycling Units . | . . . . . . . . . . . . . . . Scanalyzers 1 | . . . . . . . . . 1 . . . . . Garrison Access 7 | . . . . . . . 1 . 2 . . . . 4 Terminal Hacks 62 | . 1 1 . . 24 . 3 . 4 . . 27 1 1 Record 35 | . . . . . 23 . . . . . . 11 1 . Part Schematic 8 | . . . . . . . . . . . . 8 . . Robot Schematic 5 | . . . . . . . . . . . . 5 . . Robot Analysis 1 | . . . . . . . . . 1 . . . . . Prototype ID Bank 3 | . . . . . . . . . . . . 3 . . Level Access Points 2 | . . 1 . . . . 1 . . . . . . . Branch Access Points 2 | . 1 . . . . . 1 . . . . . . . Unreport Threat 2 | . . . . . . . . . 2 . . . . . Locate Traps 1 | . . . . . . . . . . . . . . 1 Hauler Manifests 1 | . . . . . . . . . 1 . . . . . Registered Components 1 | . . . . . . . 1 . . . . . . . EX-Prototype ID Bank 1 | . . . . . 1 . . . . . . . . . Fabricator Hacks . | . . . . . . . . . . . . . . . Repair Station Hacks . | . . . . . . . . . . . . . . . Recycling Unit Hacks . | . . . . . . . . . . . . . . . Scanalyzer . | . . . . . . . . . . . . . . . Garrison Access Hacks 2 | . . . . . . . 1 . . . . . . 1 Unlock Access 1 | . . . . . . . 1 . . . . . . . Seal Access 1 | . . . . . . . . . . . . . . 1 Unauthorized Hacks 24 | . 2 . . . . . 3 . 12 . . . 2 5 Terminals 5 | . 1 . . . . . 1 . 1 . . . 1 1 Track 1 | . 1 . . . . . . . . . . . . . Botnet 2 | . . . . . . . . . 1 . . . . 1 Disrupt 2 | . . . . . . . 1 . . . . . 1 . Fabricators 1 | . . . . . . . . . 1 . . . . . Report 1 | . . . . . . . . . 1 . . . . . Repair Stations . | . . . . . . . . . . . . . . . Recycling Units . | . . . . . . . . . . . . . . . Scanalyzers . | . . . . . . . . . . . . . . . Garrison Access 1 | . . . . . . . . . 1 . . . . . Reprogram 1 | . . . . . . . . . 1 . . . . . Data Cores Recovered . | . . . . . . . . . . . . . . . Used . | . . . . . . . . . . . . . . . Hacking Detections 21 | . 2 . . . . . 5 . 10 . . . 1 3 Full Trace Events . | . . . . . . . . . . . . . . . Feedback Events . | . . . . . . . . . . . . . . . Feedback Blocked . | . . . . . . . . . . . . . . . Robot Schematics Acquired 5 | . . . . . . . . . . . . 5 . . Robots Built . | . . . . . . . . . . . . . . . Matter . | . . . . . . . . . . . . . . . Time . | . . . . . . . . . . . . . . . Total Robot Build Rating . | . . . . . . . . . . . . . . . Part Schematics Acquired 8 | . . . . . . . . . . . . 8 . . Parts Built . | . . . . . . . . . . . . . . . Matter . | . . . . . . . . . . . . . . . Time . | . . . . . . . . . . . . . . . Total Part Build Rating . | . . . . . . . . . . . . . . . Parts Repaired . | . . . . . . . . . . . . . . . Time . | . . . . . . . . . . . . . . . Parts Recycled . | . . . . . . . . . . . . . . . Recycled Matter . | . . . . . . . . . . . . . . . Retrieved Matter . | . . . . . . . . . . . . . . . Retrieved Components . | . . . . . . . . . . . . . . . Parts Scanalyzed . | . . . . . . . . . . . . . . . Part Schematics Acquired . | . . . . . . . . . . . . . . . Parts Damaged . | . . . . . . . . . . . . . . . Bothacking | -11 -10 -10 -9 -9 -9 -8 -8 -8 -7 -7 -7 -7 -6 -6 ------------ Run | Scr Mat Min Mat Min Exi Min Mat Gar Fac Low Low Dat Pro Fac Used RIF Installer 1 | . . . . . . . . 1 . . . . . . Robots Hacked 16 | . . . . . . . . . 8 . 7 . . 1 Non-combat 5 | . . . . . . . . . 4 . 1 . . . Combat 11 | . . . . . . . . . 4 . 6 . . 1 Robot Hacks Applied 16 | . . . . . . . . . 8 . 7 . . 1 parse_system 5 | . . . . . . . . . 4 . 1 . . . deconstruct_machine 2 | . . . . . . . . . 2 . . . . . overload_power 3 | . . . . . . . . . 1 . 2 . . . formatsys_high 6 | . . . . . . . . . 1 . 4 . . 1 Relay Couplers Released 11 | . . . . . . . . 7 . . . . . 4 Machine Destruction 7 | . . . . . . . . 7 . . . . . . Programmers 4 | . . . . . . . . . . . . . . 4 Attached 7 | . . . . . . . . . 3 . 2 . . 2 Robots Rewired 1 | . . . . . . . . . . . 1 . . . Allies Hacked . | . . . . . . . . . . . . . . . Hacks Repelled . | . . . . . . . . . . . . . . . Allies | -11 -10 -10 -9 -9 -9 -8 -8 -8 -7 -7 -7 -7 -6 -6 -------- Run | Scr Mat Min Mat Min Exi Min Mat Gar Fac Low Low Dat Pro Fac Total Allies 13 | . 1 . . 2 . . . . 2 . 6 . 1 1 Largest Group 5 | . 1 1 1 3 3 1 1 1 3 1 5 1 2 3 Highest-Rated Group 238 | . 62 64 71 123 123 65 76 75 145 94 238 88 189 212 Highest-Rated Ally 135 | . 62 64 71 66 65 65 76 75 97 94 135 88 95 114 Total Orders 2 | . . . . . . . . . . . . . . 2 ROAM 2 | . . . . . . . . . . . . . . 2 Ally Attacks 449 | . 33 5 13 20 . 4 74 20 66 10 68 . 2 134 Total Damage 20144 | . 452 96 1486 1133 . 807 2716 600 2758 592 1566 . 101 7837 Kills 193 | . 9 3 18 16 . 8 26 8 30 3 18 . 1 53 Allies Corrupted 1 | . . . . . . . . . . . 1 . . . Allies Melted . | . . . . . . . . . . . . . . . Intel | -11 -10 -10 -9 -9 -9 -8 -8 -8 -7 -7 -7 -7 -6 -6 ------- Run | Scr Mat Min Mat Min Exi Min Mat Gar Fac Low Low Dat Pro Fac Robot Analysis Total 1 | . . . . . . . . . 1 . . . . . Derelict Logs Recovered 7 | . . 3 . 1 . . . . . 2 1 . . . Drone Launches 2 | . . . . . . . . . . . . . . 2 Drone Recoveries . | . . . . . . . . . . . . . . . Exploration | -11 -10 -10 -9 -9 -9 -8 -8 -8 -7 -7 -7 -7 -6 -6 ------------- Run | Scr Mat Min Mat Min Exi Min Mat Gar Fac Low Low Dat Pro Fac Turns Passed 12726 | 124 663 194 524 1004 739 278 1234 771 1751 485 1377 241 633 2708 Spaces Moved 6160 | 77 331 108 248 546 459 163 580 356 862 235 659 126 297 1113 Core 16 | 13 . . . . . . . . . . . . . 3 Treads 5473 | 61 331 108 248 546 459 163 580 356 862 235 621 126 69 708 Legs 671 | 3 . . . . . . . . . . 38 . 228 402 Wheels . | . . . . . . . . . . . . . . . Hover . | . . . . . . . . . . . . . . . Flight . | . . . . . . . . . . . . . . . Fastest Speed 50 | 50 160 160 160 160 160 160 158 158 178 177 172 192 183 50 Average Speed 175 | 144 160 160 160 160 160 160 167 174 178 177 183 192 210 191 Slowest Speed 270 | 160 160 160 180 160 160 160 183 178 178 178 270 192 245 245 Overloaded Moves . | . . . . . . . . . . . . . . . Propulsion Burnouts . | . . . . . . . . . . . . . . . Robots Hopped . | . . . . . . . . . . . . . . . Cave-ins Triggered 1 | . . . 1 . . . . . . . . . . . Exploration Rate (%) 51 | 5 51 39 37 85 78 47 67 49 30 45 88 70 49 30 Regions Visited 14 Branch Regions 8 Pre-discovered Areas 6 | . . 3 . . 1 . . . . 1 . 1 . . Known Exits Taken 6 | . 1 1 . . . . 1 . . . 1 1 1 . Unknown Exits Taken 7 | 1 . . 1 1 1 1 . . 1 1 . . . . Scrap Searched 3 | . . . . 1 . . . . . 1 1 . . . Spaces Dug 21 | . . . . . . . . . . . 21 . . . Terrain Destroyed 150 | . . . . . . . 39 . 13 2 56 . 1 39 Melee . | . . . . . . . . . . . . . . . Projectile 74 | . . . . . . . 39 . 8 2 5 . 1 19 AOE 76 | . . . . . . . . . 5 . 51 . . 20 Actions | -11 -10 -10 -9 -9 -9 -8 -8 -8 -7 -7 -7 -7 -6 -6 --------- Run | Scr Mat Min Mat Min Exi Min Mat Gar Fac Low Low Dat Pro Fac Total 7451 | 87 421 115 314 643 464 176 737 461 1011 283 768 126 303 1542 Wait 592 | . 54 . 2 58 4 5 53 53 55 25 34 . 2 247 Move 6147 | 76 330 107 247 545 458 162 580 355 861 234 658 125 296 1113 Hop . | . . . . . . . . . . . . . . . Pick Up 85 | 3 6 . 3 4 2 1 14 9 9 5 2 . 3 24 Fast Attach 40 | 7 1 . 9 1 . . 2 . 2 . 7 . 1 10 Attach 48 | . . . 4 5 . 1 7 5 4 2 6 . . 14 Detach 33 | 1 . . . 3 . . 6 5 3 1 7 . . 7 Swap 80 | . 1 . 5 1 . 2 11 4 14 1 15 . 1 25 Drop 72 | . 4 . 3 5 . 2 14 3 7 5 1 1 . 27 Fire 341 | . 25 8 41 21 . 3 47 23 54 10 35 . . 74 Melee 1 | . . . . . . . . . . . 1 . . . Ram . | . . . . . . . . . . . . . . . Kick . | . . . . . . . . . . . . . . . Crush 3 | . . . . . . . 3 . . . . . . . Escape Stasis 6 | . . . . . . . . 4 2 . . . . . Rewire 2 | . . . . . . . . . . . 2 . . . Trap . | . . . . . . . . . . . . . . . Miscellaneous 1 | . . . . . . . . . . . . . . 1 Route ------- -11/Scrapyard -10/Materials (discovered 2 exits: *Mat / *Min) -10/Mines (discovered 2 exits: *Mat x2) -9/Materials (discovered 2 exits: [*Min x2]) -9/Mines (discovered 3 exits: *Mat x2 / *Exi) -9/Exiles (discovered 2 exits: [*Min x2]) -8/Mines -8/Materials (discovered 4 exits: *Fac x3 / Gar) -8/Garrison (discovered 2 exits: *Fac x2) -7/Factory -7/Lower Caves -7/Lower Caves (discovered 3 exits: *Fac x2 / *Dat) -7/Data Miner -6/Proximity Caves -6/Factory (discovered 3 exits: *Fac / Ext x2) History --------- Turn | Location | Event 3 | -11/Scrapyard | Discovered new exit (range 16) 125 | -11/Scrapyard | Entered Materials 302 | -10/Materials | Build established: Mutant 485 | -10/Materials | Discovered new exit (range 14) 616 | -10/Materials | Identified exit to Mines 788 | -10/Materials | Entered Mines 788 | -10/Mines | Accompanied by 1 ally 790 | -10/Mines | Core integrity fell below 50% 875 | -10/Mines | Met a Derelict bent on vengeance 892 | -10/Mines | Identified exit to Materials 897 | -10/Mines | Learned location of Zion (-6) 976 | -10/Mines | Learned location of Storage (-9) 982 | -10/Mines | Entered Materials 982 | -9/Materials | Accompanied by 1 ally 982 | -9/Materials | Evolved 2 slots: Propulsion x1, Utility x1 1168 | -9/Materials | Discovered new exit (range 14) 1283 | -9/Materials | Lost 3 parts (1n2w) 1292 | -9/Materials | Crushed by falling debris 1444 | -9/Materials | Discovered new exit (range 13) 1475 | -9/Materials | Core integrity fell below 50% 1506 | -9/Materials | Entered Mines 1506 | -9/Mines | Accompanied by 1 ally 1536 | -9/Mines | Build established: Scavenger-Mutant 1909 | -9/Mines | Learned Materials emergency access door positions 1935 | -9/Mines | Assembled infested the area 2215 | -9/Mines | Discovered new exit (range 16) 2300 | -9/Mines | Discovered new exit (range 11) 2499 | -9/Mines | Deemed a non-threat by the Exiles lab entrance 2499 | -9/Mines | Discovered new exit (range 5) 2510 | -9/Mines | Entered Exiles 2510 | -9/Exiles | Accompanied by 3 allies 2536 | -9/Exiles | Discovered new exit (range 15) 2540 | -9/Exiles | Led the pair of lost Derelicts to a safe place 2555 | -9/Exiles | Met 8R-AWN 2581 | -9/Exiles | Met EX-HEX 2626 | -9/Exiles | Met EX-BIN 2765 | -9/Exiles | Aligned with FarCom system 2766 | -9/Exiles | Given EX-Vault access code 2806 | -9/Exiles | Opened EX-Vault 2821 | -9/Exiles | Found AWS/Autocannon 2856 | -9/Exiles | Warned to stay clear of 0b10 Research branches 2897 | -9/Exiles | Met EX-DEC 2980 | -9/Exiles | Visited The Gauntlet 3167 | -9/Exiles | Discovered new exit (range 10) 3249 | -9/Exiles | Left Exiles lab with AWS/Autocannon 3249 | -9/Exiles | Entered Mines 3249 | -8/Mines | Accompanied by 1 ally 3514 | -8/Mines | Discovered new exit (range 9) 3527 | -8/Mines | Entered Materials 3527 | -8/Materials | Accompanied by 1 ally 3527 | -8/Materials | Evolved 2 slots: Utility x1, Weapon x1 3841 | -8/Materials | Build established: Scavenger-Skirmisher 4145 | -8/Materials | Discovered new exit (range 3) 4189 | -8/Materials | Identified exit to Factory 4327 | -8/Materials | First assault squad dispatched 4684 | -8/Materials | Build established: Skirmisher 4761 | -8/Materials | Identified exit to Garrison 4761 | -8/Materials | Entered Garrison 4761 | -8/Garrison | Accompanied by 1 ally 4769 | -8/Garrison | Installed Relay Interface Framework 4870 | -8/Garrison | Triggered checkpoint 4948 | -8/Garrison | Garrison Relay disabled 5097 | -8/Garrison | Triggered checkpoint 5117 | -8/Garrison | Triggered checkpoint 5127 | -8/Garrison | Triggered checkpoint 5224 | -8/Garrison | Triggered checkpoint 5259 | -8/Garrison | Garrison Relay disabled 5310 | -8/Garrison | Discovered exit to Factory (range 10) 5355 | -8/Garrison | Build established: Hauler-Skirmisher 5492 | -8/Garrison | Discovered exit to Factory (range 11) 5532 | -8/Garrison | Entered Factory 5532 | -7/Factory | Accompanied by 1 ally 5532 | -7/Factory | Evolved 2 slots: Utility x2 6164 | -7/Factory | Build established: Bothacker-Mutant 7008 | -7/Factory | Discovered new exit (range 15) 7132 | -7/Factory | First assault squad dispatched 7283 | -7/Factory | Entered Lower Caves 7283 | -7/Lower Caves | Accompanied by 1 ally 7390 | -7/Lower Caves | Learned location of 1 exit from Factory 7417 | -7/Lower Caves | Spotted B-75 Beast 7429 | -7/Lower Caves | Destroyed B-75 Beast 7543 | -7/Lower Caves | Learned location of Extension (-6) 7674 | -7/Lower Caves | Discovered new exit (range 7) 7727 | -7/Lower Caves | Build established: Bothacker-Gunner 7768 | -7/Lower Caves | Entered another Lower Caves area 7768 | -7/Lower Caves | Accompanied by 1 ally 7770 | -7/Lower Caves | Attracted the attention of an 0b10 checkpoint 7773 | -7/Lower Caves | Core integrity fell below 50% 7805 | -7/Lower Caves | Spotted B-75 Beast 7820 | -7/Lower Caves | Allies destroyed B-75 Beast 7830 | -7/Lower Caves | Discovered new exit (range 15) 8043 | -7/Lower Caves | 99-TNT showed up to help 8045 | -7/Lower Caves | 99-TNT revealed a hidden path 8058 | -7/Lower Caves | Build established: Bothacker-Mutant 8322 | -7/Lower Caves | Core integrity fell below 20% 8472 | -7/Lower Caves | Attracted the attention of an 0b10 outpost 8503 | -7/Lower Caves | Rewired Cogmind 8513 | -7/Lower Caves | Lost 4 parts (2p1n1w) 8837 | -7/Lower Caves | Identified exit to Factory 8973 | -7/Lower Caves | Encountered a Warlord checkpoint 9132 | -7/Lower Caves | Discovered new exit (range 7) 9143 | -7/Lower Caves | Identified exit to Data Miner 9145 | -7/Lower Caves | Entered Data Miner 9145 | -7/Data Miner | Accompanied by 1 ally 9145 | -7/Data Miner | Discovered new exit (range 6) 9182 | -7/Data Miner | Met Data Miner 9228 | -7/Data Miner | Learned location of Section 7 (-3) 9228 | -7/Data Miner | Acquired the access code to Warlord's prototype stash 9263 | -7/Data Miner | Received God Mode back door access code from Data Miner 9303 | -7/Data Miner | Build established: Hauler-Mutant 9384 | -7/Data Miner | Identified exit to Proximity Caves 9386 | -7/Data Miner | Entered Proximity Caves 9386 | -6/Proximity Caves | Accompanied by 1 ally 9507 | -6/Proximity Caves | Escorted by Enhanced Grunt 9793 | -6/Proximity Caves | Build established: Hauler-Tank 9914 | -6/Proximity Caves | Discovered exit to Factory (range 10) 10019 | -6/Proximity Caves | Entered Factory 10019 | -6/Factory | Accompanied by 2 allies 10019 | -6/Factory | Evolved 2 slots: Utility x2 10020 | -6/Factory | Identified exit to Extension 10307 | -6/Factory | Build established: Hauler-Skirmisher 10635 | -6/Factory | Discovered new exit (range 15) 10654 | -6/Factory | Build established: Hauler-Mutant 10660 | -6/Factory | Identified exit to Factory 10847 | -6/Factory | Garrison activated, responded to threat 10890 | -6/Factory | Lost 3 parts (1n2w) 11344 | -6/Factory | Build established: Scavenger-Skirmisher 11735 | -6/Factory | Spotted B-75 Beast 11751 | -6/Factory | Allies destroyed B-75 Beast 12119 | -6/Factory | First assault squad dispatched 12380 | -6/Factory | Incoming assault squad redirected 12461 | -6/Factory | High security lockdown imminent 12505 | -6/Factory | Core integrity fell below 50% 12541 | -6/Factory | High security lockdown engaged 12623 | -6/Factory | Build established: Hauler-Tank 12719 | -6/Factory | Core integrity fell below 20% 12725 | -6/Factory | Released all parts (9) 12727 | -6/Factory | Destroyed by P-60 Hacker with Shock Rifle Last Messages --------------- 12719_ Slug penetrates Wall. 12719_ Penetrated by Slug. 12720_ Acquired Lyr. Medium Armor Plating. 12720_ P-60 Hacker resets L-41 Fighter, system corruption cleaned. 12721_ Slug penetrates Player 2. 12721_ Player 2 attaches Autogun. 12723_ Acquired Coil Gun. 12724_ Door malfunctions. 12724_ Slug penetrates H-66 Slayer. 12725_ Released Lyr. Medium Armor Plating. 12725_ Released Gauss Cannon. 12725_ Released Hacking Suite. 12725_ Released Mak. Hacking Suite. 12725_ Released Imp. Medium Treads. 12725_ Released Lrg. Storage Unit. 12725_ Released Coil Gun. 12725_ Dropped AWS/Autocannon. 12725_ Player 2 drops Gauss Cannon. Player 2: "Perfect timing, Gauss Cannon for you." 12726_ Slug penetrates Player 2. Map ----- +----------------------------------------------------+ | ?????????????????????????????????????????????????? | | ?????????????????????????????????????????????????? | | ?????????????????????????????????????????????????? | | ?????????????????????????????????????????????????? | | ?????????????????????????????????????????????????? | | ?????????????????????????????????????????????????? | | ??" #????????????????????????????????????????????? | | """ #####????????????????????????????????????????? | | """ + ##############???????????????????????????? | | """ # # #???????????????????????????? | | # # !#???????????????????????????? | | ! ??+ # #???????????????????????????? | | ????# # #???????????????????????????? | | ##### # ! """ ] #???????????????????????????? | | % # """ #???????????????????????????? | | [# """ #???????????????????????????? | | " """ *#???????????????????????????? | | " "R """ #???????????????????????????? | | + """ """ #???????????????????????????? | | ####+#### "" """ #???????????????????????????? | | ??? ???# ! #???????????????????????????? | | ?? ""???#######/###########??????????????????????? | | ?# ""?????????# #???# ]] ##########+###?????????? | | ## "????####### #####!@*! g % ????????? | | ## ????+ C C!!=ll! h g % ????????? | | ## "????#### #####!%!!@p mh ????????? | | ##?????????# #???#=!][!########???????????????? | | #??????????# #???###/###??????????????????????? | | #??????????# ####???? !!! ???????????????????????? | | #??????????# ??????? [[ ??????????????????????? | | #?????????? ?????? ?????????????????????? | | #?????????##??????# ! #????????????????????? | | #?????????????????# #????????????????????? | | #?????????????????# ! #????????????????????? | | #?????????????????# #????????????????????? | | #?????????????????# ! #????????????????????? | | #############?????###########????????????????????? | | # #????????????????????????????????????? | | #!" #????????????????????????????????????? | | " # #????????????????????????????????????? | | +]" #????????????????????????????????????? | | ### #????????????????????????????????????? | | #?# #????????????????????????????????????? | | #?# #????????????????????????????????????? | | #?# #????????????????????????????????????? | | #?###########????????????????????????????????????? | | #????????????????????????????????????????????????? | | #????????????????????????????????????????????????? | | #????????????????????????????????????????????????? | | ?????????????????????????????????????????????????? | +----------------------------------------------------+ Best States ------------- Heat Dissipation 56 Energy Generation 18 Energy Capacity 300 Matter Stores 300 Matter Capacity 450 Sight Range 18 Terrain Scan Density 10 Armor Coverage 450 Resistance: KI 30 Evasion (%) 40 Targeting Accuracy 8 Recoil Reduction 3 Kinecelleration 30 Offensive Hacking 21 Defensive Hacking 10 Item Schematics ----------------- Combat Drone Bay | -7/Data Miner | Free Lgt. Regenerative Plating | -7/Data Miner | Free Exp. Terrain Scan Processor | -7/Data Miner | Free Tactical Coordination Suite | -7/Data Miner | Free Exp. Transmission Jammer | -7/Data Miner | Free Exp. ECM Suite | -7/Data Miner | Free Plasma Sword | -7/Data Miner | Free Kinetic Spear | -7/Data Miner | Free Robot Schematics ------------------ S-27 Virus | -7/Data Miner | Free G-50 Soldier | -7/Data Miner | Free P-70 Sage | -7/Data Miner | Free I-36 Angel | -7/Data Miner | Free I-47 Archangel | -7/Data Miner | Free Fabricated ------------ Nothing Alien Tech Used ----------------- None Achievements -------------- None Challenges ------------ None Game ------ Seed SigixDisposableMantle Manual? 0 Play Time 01:54:26 Cumulative 183.5 hours Start 2020.04.01 @ 15:45:06 End 2020.04.02 @ 16:59:46 Sessions 4 Manual Loads 0 Difficulty Rogue Special Mode AFD2020/Player2 Game No. 137 Rogue 137 Adventurer 0 Explorer 0 Win Type - Total 9 Types 4/0/1/1/0/2/1 Lore% 75 Gallery% 78 Achievement% 70 Wizard Run 0 Options --------- ASCII 0 Keyboard 1 Movement Numpad Keybinds 0 Fullscreen 1 Font 12/Terminus Map View 83x54 Tactical HUD 1 Map Filters NONE Filters LOW_CONTRAST(13,24,33) Steam 1 RUN: 3f0ad614-edfe-47ef-8780-e0babffc1fe2